{"text_format":"3","workbook":"xlsx","n_sheets":1,"sheets":["PRICING SCHEDULE"],"not_rendered":{"images":1,"defined_names":2},"read":"whole","date_system":"1900"}

{"sheet":"PRICING SCHEDULE","index":0,"n_rows":36,"n_cols":10,"rows_kept":36,"merged":[[11,2,11,3],[12,2,12,3],[12,5,14,5],[13,2,13,3],[14,2,14,3],[16,4,16,6],[32,1,35,1],[32,2,32,3],[32,4,32,5],[33,2,33,3],[34,2,34,3],[34,4,34,5],[35,2,35,3],[35,4,35,5]]}
[null,"SUPPLY CHAIN MANAGEMENT"]
[null,"Pricing schedule"]
["RFB No","RFB 2777-2023"]
["RFx Title","Supply, Deliver, Install, Skills Transfer, and Configure Network Switches and Routers"]
["Bidder Name "]
[]
["1. INSTRUCTION FOR COMPLETING THE PRICING SCHEDULE"]
["(a)  Bidder must complete/enter YELLOW cells only"]
["(b)  Unit and Line prices must be VAT EXCLUSIVE and in South African Rand (ZAR) currency."]
["(c) The price must include all cost to deliver the goods or render the service, including all applicable taxes, duty fees, logistics/delivery, storage, labour, overtime and subsistance and travel"]
["(d)  Prices that are dependent on Rate of Exchange (ROE) must use ROE indicated below, then enter in Column \"Forex %\" the percentage of the price that is ROE dependent (0% means the price is not ROE dependent)"]
[null,"Foreign currency","South African Rand (ZAR) exchange rate "]
[null,"1 US Dollar",{"v":18.0381,"d":"R18.04"},null,null,"Mark with an X, which ROE is applicable"]
[null,"1 Euro",{"v":20.2713,"d":"R20.27"}]
[null,"1 Pound (UK)",{"v":23.2167,"d":"R23.22"}]
[]
[]
["Item No","Goods/Service description","Unit of measure","Forex %","Qty ","Unit Price \n(Excl VAT)","Line Price -Once-Off","Forex Price portion","BRAND / MODEL (if applicable)","Price clarification comment"]
[1,"SUPPLY AND DELIVERY",{"$nulls":4},{"$f":"SUBTOTAL(9,G20:G23)","v":0},{"$f":"SUBTOTAL(9,H20:H23)","v":0}]
["1.1","Supply  48 Port POE Access Switches","Each",{"v":0,"d":"0%"},50,0,{"$f":"E20*F20","v":0},{"$f":"D20*G20","v":0}]
["1.2","Supply  24 Port POE Access Switches","Each",{"v":0,"d":"0%"},10,0,{"$f":"E21*F21","v":0},{"$f":"D21*G21","v":0}]
["1.3","Supply 48 Port Core Switches","Each",{"v":0,"d":"0%"},10,0,0,0]
["1.4","Supply  Routers","Each",{"v":0,"d":"0%"},18,0,0,0]
[2,"INSTALLATION AND CONFIGIRATION",{"$nulls":3},0,{"$f":"SUBTOTAL(9, G25:G25)","v":0},{"$f":"SUBTOTAL(9, H25:H25)","v":0}]
["2.1","Install and Configure Switches","Each",{"v":0,"d":"0%"},70,0,{"$f":"E25*F25","v":0},0]
[3,"SKILLLS TRANSFER",{"$nulls":4},{"$f":"SUBTOTAL(9, G27:G27)","v":0},{"$f":"SUBTOTAL(9, H27:H27)","v":0}]
["3.1","Inhouse training for switches for  Technical Resources","Per Person ",{"v":0,"d":"0%"},10,0,0,0]
[null,"TOTAL BID PRICE  (EXCL VAT)",{"$nulls":4},{"$f":"SUBTOTAL(9,G19:G27)","v":0},{"$f":"SUBTOTAL(9,H19:H27)","v":0}]
[null,"VAT (@15%)",{"$nulls":4},{"$f":"G28*0.15","v":0}]
[null,"TOTAL  BID PRICE (INCL VAT)",{"$nulls":4},{"$f":"G28+G29","v":0}]
["NO installation of Routers"]
[]
[null,"I, the bidder, confirm that the price(s) and rate(s) quoted cover all the goods and/or works specified in the bidding documents; that the price(s) or rate(s) cover all my obligations and I accept that any mistakes regarding price(s), rate(s) or calculations will be at my own risk.\n[Note: First convert to PDF, then add signature]"]
[null,null,"Name",null,"Capacity"]
[]
[null,null,"Signature (above)",null,"Date"]